bitfinex-derivatives/quotes_SOLF0:USTF0_20250520
["timestamp","ask_amount","ask_price","bid_price","bid_amount"]
[1747782559539,92.6,168.14,168.04,1.48734029]
[1747782560352,3.9866,168.16,168.05,1.48734029]
[1747782560542,0.03888038,168.12,168.09,0.03877294]
[1747782560854,5.9466,168.11,168.09,0.03877294]
[1747782562353,5.9466,168.11,168.09,5.98607294]
[1747782562647,0.03888038,168.12,168.09,0.03877294]
[1747782563652,0.03888038,168.12,168.1,5.9467]
[1747782564153,5.98518038,168.12,168.09,5.98597294]
[1747782564459,5.98518038,168.12,168.09,0.03877294]
[1747782564954,5.9467,168.11,168.09,0.03877294]
[1747782565654,5.947,168.1,168.09,0.03877294]
[1747782570763,5.9467,168.11,168.09,0.03877294]
[1747782572061,5.947,168.1,168.09,0.03877294]
[1747782573469,5.9468,168.11,168.09,0.03877294]
[1747782573855,0.03888038,168.12,168.09,0.03877294]
[1747782574055,5.98518038,168.12,168.1,5.9469]
[1747782575864,5.98518038,168.12,168.09,5.98597294]
[1747782577565,5.98518038,168.12,168.1,5.9469]
[1747782577865,0.03888038,168.12,168.1,5.9469]
[1747782581368,5.98528038,168.12,168.1,5.9469]
[1747782583471,5.98528038,168.12,168.09,5.98587294]
[1747782585066,0.03888038,168.12,168.1,5.9469]
[1747782585465,0.03888038,168.12,168.09,0.03877294]
[1747782585669,0.03888038,168.12,168.11,5.9466]
[1747782586471,0.03888038,168.12,168.11,7.43318682]
[1747782587772,169.16346632,168.17,168.11,86.24658682]
[1747782587972,1.9142,168.22,168.13,6.37310441]
[1747782588173,5.9435,168.2,168.14,92.54]
[1747782588372,5.9435,168.2,168.17,5.9443]
[1747782588674,5.9858511,168.2,168.17,5.98982687]
[1747782589075,0.0423511,168.2,168.17,0.04552687]
[1747782589573,5.9441,168.18,168.17,0.04552687]
[1747782592473,0.0423511,168.2,168.17,0.04552687]
[1747782592775,0.0423511,168.2,168.17,5.98982687]
[1747782593277,5.9859511,168.2,168.17,5.98982687]
[1747782595174,5.9859511,168.2,168.18,5.9441]
[1747782596574,0.0423511,168.2,168.18,5.9441]
[1747782596963,0.0423511,168.2,168.19,5.9438]
[1747782599883,0.0423511,168.2,168.18,5.944]
[1747782600575,0.0423511,168.2,168.19,5.9438]
[1747782601979,0.0423511,168.2,168.18,5.944]
[1747782602781,0.0423511,168.2,168.17,0.04552687]
[1747782603079,5.9858511,168.2,168.17,0.04552687]
[1747782603280,5.9858511,168.2,168.17,5.98992687]
[1747782603780,0.0423511,168.2,168.17,0.04552687]
[1747782604381,5.9441,168.18,168.17,0.04552687]
[1747782605979,5.9439,168.19,168.17,0.04552687]
[1747782607084,5.9441,168.18,168.17,0.04552687]
[1747782608686,5.9439,168.19,168.17,0.04552687]
[1747782610290,0.0423511,168.2,168.17,0.04552687]
[1747782610889,0.0423511,168.2,168.18,5.9438]
[1747782612183,0.0423511,168.2,168.17,0.04552687]
[1747782612388,0.0423511,168.2,168.19,5.9438]
[1747782613885,0.0423511,168.2,168.19,98.4438]
[1747782614085,92.5,168.26,168.21,5.9428]
[1747782614285,92.5,168.26,168.19,92.5]
[1747782614486,5.9418,168.25,168.21,5.9429]
[1747782614991,5.98035022,168.25,168.21,5.98616123]
[1747782615379,5.9421,168.24,168.21,5.98616123]
[1747782615894,0.03855022,168.25,168.21,0.04326123]
[1747782616093,5.9424,168.23,168.21,0.04326123]
[1747782616393,0.03855022,168.25,168.21,0.04326123]
[1747782616802,5.9421,168.24,168.21,5.98616123]
[1747782617390,0.03855022,168.25,168.21,0.04326123]
[1747782618597,2.0928,168.33,168.22,6.37310441]
[1747782618791,2.0928,168.33,168.26,6.37310441]
[1747782619193,2.0928,168.33,168.24,6.37310441]
[1747782619486,2.0928,168.33,168.23,94.5031]
[1747782619687,5.9403,168.29,168.26,0.04427976]
[1747782619893,0.04365204,168.3,168.26,0.04427976]
[1747782620292,5.98365204,168.3,168.26,0.04427976]
[1747782620495,0.04365204,168.3,168.26,0.04427976]
[1747782620899,5.9406,168.28,168.26,0.04427976]
[1747782622001,5.9409,168.27,168.26,0.04427976]
[1747782624411,7.8918,168.29,168.26,0.04427976]
[1747782624608,1.9513,168.29,168.26,0.04427976]
[1747782624807,0.04365204,168.3,168.26,0.04427976]
[1747782625714,5.9409,168.27,168.26,0.04427976]
[1747782628715,5.9407,168.28,168.26,0.04427976]
[1747782628907,0.04365204,168.3,168.26,0.04427976]
[1747782629718,5.9408,168.28,168.26,0.04427976]
[1747782631516,5.9409,168.27,168.26,0.04427976]
[1747782631815,0.04365204,168.3,168.26,0.04427976]
[1747782634012,5.9409,168.27,168.26,0.04427976]
[1747782638112,5.9407,168.28,168.26,0.04427976]
[1747782640625,5.9407,168.28,168.26,5.98557976]
[1747782640809,0.04365204,168.3,168.26,5.98557976]
[1747782641124,0.04365204,168.3,168.26,0.04427976]
[1747782641923,5.9408,168.28,168.26,0.04427976]
[1747782642326,5.9408,168.28,168.26,5.98547976]
[1747782643619,5.9403,168.29,168.26,5.98547976]
[1747782643827,0.04365204,168.3,168.26,0.04427976]
[1747782644219,0.04365204,168.3,168.27,5.9409]
[1747782644220,5.98355204,168.3,168.27,5.9409]
[1747782644421,5.98355204,168.3,168.26,0.04427976]
[1747782644422,0.04365204,168.3,168.26,0.04427976]
[1747782644727,5.9408,168.28,168.26,0.04427976]
[1747782644925,0.04365204,168.3,168.26,0.04427976]
[1747782645526,5.9408,168.28,168.26,0.04427976]
[1747782645919,0.04365204,168.3,168.26,0.04427976]
[1747782646626,5.9408,168.28,168.26,0.04427976]
[1747782647028,5.9408,168.28,168.26,5.98547976]
[1747782647327,5.9409,168.27,168.26,0.04427976]
[1747782647931,5.9407,168.28,168.26,0.04427976]
[1747782648126,0.04365204,168.3,168.26,0.04427976]
[1747782648925,5.98355204,168.3,168.26,5.98537976]
[1747782649436,5.98355204,168.3,168.26,0.04427976]
[1747782650034,5.98355204,168.3,168.27,5.9408]
[1747782650427,5.98355204,168.3,168.26,0.04427976]
[1747782650627,0.04365204,168.3,168.28,5.9405]
[1747782652035,0.04365204,168.3,168.29,5.9402]
[1747782655631,0.04365204,168.3,168.28,93.72]
[1747782656035,5.98375204,168.3,168.26,0.04427976]
[1747782656340,5.98375204,168.3,168.27,5.9408]
[1747782656633,5.9404,168.29,168.26,0.04427976]
[1747782657337,0.04365204,168.3,168.26,0.04427976]
[1747782657838,5.9409,168.27,168.26,0.04427976]
[1747782658634,0.04365204,168.3,168.26,0.04427976]
[1747782659035,5.9405,168.29,168.27,5.9409]
[1747782659237,0.04365204,168.3,168.26,0.04427976]
[1747782659437,5.98365204,168.3,168.27,5.9407]
[1747782659631,0.04365204,168.3,168.26,0.04427976]
[1747782660939,5.9405,168.29,168.26,5.98537976]
[1747782663543,5.9406,168.28,168.26,5.98537976]
[1747782664242,5.9409,168.27,168.26,0.04427976]
[1747782665537,5.9406,168.28,168.26,0.04427976]
[1747782665946,0.04365204,168.3,168.26,0.04427976]
[1747782666242,5.9409,168.27,168.26,0.04427976]
[1747782667543,5.9407,168.28,168.26,0.04427976]
[1747782670642,5.9409,168.27,168.26,0.04427976]
[1747782671742,5.9408,168.28,168.26,0.04427976]
[1747782675945,5.9404,168.29,168.26,5.98557976]
[1747782676246,0.04365204,168.3,168.26,0.04427976]
[1747782676439,5.9402,168.29,168.27,5.9407]
[1747782676645,0.04365204,168.3,168.27,5.9407]
[1747782677545,5.98375204,168.3,168.27,5.9407]
[1747782680249,0.04365204,168.3,168.26,0.04427976]
[1747782680544,0.04365204,168.3,168.27,92.48]
[1747782680943,0.04365204,168.3,168.28,1.48517852]
[1747782681143,0.04365204,168.3,168.29,5.9402]
[1747782682445,0.04365204,168.3,168.28,7.42557852]
[1747782682651,0.04365204,168.3,168.28,1.48517852]
[1747782682946,5.9402,168.29,168.28,1.48517852]
[1747782683142,5.9402,168.29,168.26,5.98537976]
[1747782684053,5.98365204,168.3,168.27,1.48535677]
[1747782684655,5.98365204,168.3,168.27,7.42615677]
[1747782685351,5.98365204,168.3,168.28,5.9405]
[1747782686154,0.04365204,168.3,168.28,5.9405]
[1747782687167,5.98355204,168.3,168.28,5.9405]
[1747782688466,5.98355204,168.3,168.27,5.9409]
[1747782689167,5.9409,168.27,168.26,0.04427976]
[1747782690768,5.942,168.24,168.23,1.32502852]
[1747782691669,10.46040441,168.3,168.18,7.25205076]
[1747782691670,0.03983409,168.25,168.18,7.25205076]
[1747782691968,0.03983409,168.25,168.2,0.04414843]
[1747782693169,5.9428,168.22,168.2,0.04414843]
[1747782695770,0.03983409,168.25,168.2,0.04414843]
[1747782695968,5.9431,168.21,168.2,0.04414843]
[1747782696567,4.1941,168.24,168.2,0.04414843]
[1747782697174,6.1392,168.24,168.2,0.04414843]
[1747782697666,5.9431,168.21,168.2,0.04414843]
[1747782702174,92.5,168.23,168.2,0.04414843]
[1747782702770,5.943,168.22,168.2,0.04414843]
[1747782704174,5.943,168.22,168.2,5.98744843]
[1747782704478,5.943,168.22,168.2,0.04414843]
[1747782704983,9.9752,168.24,168.2,0.04414843]
[1747782705278,5.9423,168.24,168.21,5.9429]
[1747782705477,0.03983409,168.25,168.2,0.04414843]
[1747782706879,5.9422,168.24,168.21,5.9429]
[1747782707071,5.9422,168.24,168.2,0.04414843]
[1747782707279,0.03983409,168.25,168.23,5.9423]
[1747782707979,5.98173409,168.25,168.22,5.9426]
[1747782709679,0.03983409,168.25,168.2,0.04414843]
[1747782710474,0.03983409,168.25,168.23,5.9421]
[1747782710974,0.03983409,168.25,168.24,5.942]
[1747782716587,0.03983409,168.25,168.23,5.9422]
[1747782717995,5.98153409,168.25,168.23,5.9422]
[1747782718203,0.03983409,168.25,168.21,92.5]
[1747782718693,5.9423,168.24,168.21,98.4428]
[1747782719287,5.9423,168.24,168.22,5.9427]
[1747782719796,5.9424,168.23,168.2,0.04414843]
[1747782720395,5.9424,168.23,168.21,5.9431]
[1747782721096,0.03983409,168.25,168.2,0.04414843]
[1747782721486,5.9422,168.24,168.22,5.9427]
[1747782721689,0.03983409,168.25,168.2,0.04414843]
[1747782722396,5.9426,168.23,168.2,5.98724843]
[1747782722595,0.03983409,168.25,168.2,5.98724843]
[1747782722894,0.03983409,168.25,168.2,0.04414843]
[1747782723287,0.03983409,168.25,168.2,364.04414843]
[1747782723493,0.03983409,168.25,168.24,5.942]
[1747782732302,0.03983409,168.25,168.24,7.42760375]
[1747782732909,0.03983409,168.25,168.24,1.48560375]
[1747782734102,0.03983409,168.25,168.23,5.9423]
[1747782735117,0.03983409,168.25,168.24,5.942]
[1747782738019,0.03983409,168.25,168.24,7.42756949]
[1747782742814,11.09122249,168.4,168.24,365.48556949]
[1747782743020,92.44,168.38,168.25,6.37310441]
[1747782743216,92.44,168.38,168.26,92.44]
[1747782743726,0.04073095,168.34,168.32,5.939]
[1747782743921,0.04073095,168.34,168.32,92.44]
[1747782744631,0.04073095,168.34,168.33,5.9388]
[1747782745123,0.04073095,168.34,168.33,7.42436949]
[1747782745425,5.9357,168.42,168.33,1.48556949]
[1747782745820,5.9354,168.43,168.33,1.48556949]
[1747782746421,0.04094483,168.4,168.36,0.04189273]
[1747782747126,0.04094483,168.4,168.36,5.97969273]
[1747782748430,5.9368,168.39,168.36,0.04189273]
[1747782748927,5.9374,168.38,168.36,0.04189273]
[1747782749134,6.41404924,168.4,168.36,0.04189273]
[1747782749322,0.04094483,168.4,168.36,0.04189273]
[1747782749518,92.46094483,168.4,168.36,0.04189273]
[1747782749719,5.9371,168.38,168.36,0.04189273]
[1747782750219,92.46094483,168.4,168.36,0.04189273]
[1747782750627,98.39754483,168.4,168.36,0.04189273]
[1747782750828,92.46094483,168.4,168.36,0.04189273]
[1747782751023,0.04094483,168.4,168.36,0.04189273]
[1747782751226,0.04094483,168.4,168.36,5.97939273]
[1747782751434,0.04094483,168.4,168.36,0.04189273]
[1747782751728,0.04094483,168.4,168.37,5.9372]
[1747782752719,0.04094483,168.4,168.36,92.46189273]
[1747782753722,0.04094483,168.4,168.39,5.9367]
[1747782754630,0.04094483,168.4,168.38,5.9369]
[1747782754830,0.04094483,168.4,168.36,92.46189273]
[1747782755018,6.37310441,168.53,168.38,6.37310441]
[1747782755219,6.37310441,168.53,168.44,5.9347]
[1747782755725,6.37310441,168.53,168.43,92.4]
[1747782755925,6.41442667,168.5,168.46,0.04044757]
[1747782756126,5.9356,168.43,168.38,92.4]
[1747782756331,5.9356,168.43,168.39,5.9367]
[1747782757027,5.97907187,168.43,168.39,5.97651866]
[1747782757833,0.04347187,168.43,168.41,5.936]
[1747782759135,0.04347187,168.43,168.42,5.9357]
[1747782759523,0.04347187,168.43,168.39,0.03981866]
[1747782759724,0.04347187,168.43,168.42,5.9357]
[1747782759926,0.04347187,168.43,168.42,98.3157]
[1747782760634,0.04347187,168.43,168.42,92.38]
[1747782761429,0.04347187,168.43,168.39,0.03981866]
[1747782761627,0.04347187,168.43,168.39,92.41981866]
[1747782763133,0.04347187,168.43,168.42,5.9357]
[1747782764235,0.04347187,168.43,168.41,5.9359]
[1747782764428,0.04347187,168.43,168.39,92.41981866]
[1747782764625,0.04347187,168.43,168.42,5.9357]
[1747782765130,0.04347187,168.43,168.4,5.9361]
[1747782765432,0.04347187,168.43,168.39,92.41981866]
[1747782766028,5.97907187,168.43,168.39,98.35641866]
[1747782766633,5.9357,168.42,168.39,98.35641866]
[1747782768538,5.9357,168.42,168.39,92.41981866]
[1747782768832,5.9361,168.41,168.39,92.41981866]
[1747782769043,5.9361,168.41,168.39,0.03981866]
[1747782769340,5.9358,168.42,168.39,0.03981866]
[1747782769931,5.936,168.41,168.39,0.03981866]
[1747782770137,0.04347187,168.43,168.42,5.9357]
[1747782771538,6.33765654,168.6,168.42,90.93765654]
[1747782771735,6.33765654,168.57,168.43,1.9847]
[1747782771935,100.47765654,168.57,168.44,94.14]
[1747782772439,0.04192272,168.52,168.49,0.04239768]
[1747782772629,5.9328,168.5,168.49,0.04239768]
[1747782772826,0.04192272,168.52,168.49,0.04239768]
[1747782773030,5.9328,168.5,168.49,0.04239768]
[1747782773226,0.04192272,168.52,168.49,0.04239768]
[1747782773938,5.98192272,168.52,168.39,94.14]
[1747782774141,2.1031,168.51,168.42,5.9354]
[1747782774340,5.9342,168.47,168.39,94.14]
[1747782774536,94.14,168.46,168.34,1.7858581]
[1747782774739,0.04468336,168.43,168.39,0.0394542]
[1747782775039,0.04468336,168.43,168.39,0.04127248]
[1747782776440,0.04468336,168.43,168.41,5.9358]
[1747782778334,0.04468336,168.43,168.4,5.9363]
[1747782780042,0.04468336,168.43,168.41,5.936]
[1747782784151,0.04468336,168.43,168.4,5.9363]
[1747782785548,0.04468336,168.43,168.39,0.04127248]
[1747782786852,0.04468336,168.43,168.4,5.9361]
[1747782787045,0.04468336,168.43,168.39,0.04127248]
[1747782787241,0.04468336,168.43,168.4,5.9363]
[1747782788447,5.97998336,168.43,168.4,5.9363]
[1747782788652,0.04468336,168.43,168.39,0.04127248]
[1747782788852,4.03978336,168.43,168.39,0.04127248]
[1747782789255,5.9364,168.4,168.39,0.04127248]
[1747782790047,5.9362,168.41,168.39,0.04127248]
[1747782791340,4.03978336,168.43,168.39,0.04127248]
[1747782792455,5.9363,168.41,168.39,0.04127248]
[1747782793751,5.9358,168.42,168.39,0.04127248]
[1747782793947,4.03978336,168.43,168.39,0.04127248]
[1747782794651,5.9362,168.41,168.39,0.04127248]
[1747782795144,94.16,168.4,168.39,0.04127248]
[1747782795956,100.0964,168.4,168.39,0.04127248]
[1747782796756,94.16,168.4,168.39,0.04127248]
[1747782797556,96.26738336,168.43,168.39,0.04127248]
[1747782798055,102.20278336,168.43,168.39,0.04127248]
[1747782798757,94.20468336,168.43,168.39,0.04127248]
[1747782799051,0.04468336,168.43,168.39,0.04127248]
[1747782799357,5.98008336,168.43,168.39,5.97787248]
[1747782799760,0.04468336,168.43,168.39,0.04127248]
[1747782799954,5.9359,168.42,168.39,0.04127248]
[1747782800258,0.04468336,168.43,168.39,0.04127248]
[1747782800446,5.9358,168.42,168.39,0.04127248]
[1747782801159,5.9358,168.42,168.39,5.97777248]
[1747782801555,5.98018336,168.43,168.39,0.04127248]
[1747782802656,5.98018336,168.43,168.4,5.9362]
[1747782803559,0.04468336,168.43,168.41,5.936]
[1747782803761,0.04468336,168.43,168.39,0.04127248]
[1747782804160,0.04468336,168.43,168.4,5.936]
[1747782804362,0.04468336,168.43,168.39,0.04127248]
[1747782804762,5.97998336,168.43,168.4,5.9363]
[1747782805860,5.9357,168.42,168.39,5.97787248]
[1747782806064,0.04468336,168.43,168.39,0.04127248]
[1747782806652,95.8,168.42,168.39,0.04127248]
[1747782807153,5.9364,168.4,168.39,0.04127248]
[1747782807761,5.9362,168.41,168.39,0.04127248]
[1747782808459,101.7358,168.42,168.39,0.04127248]
[1747782808664,95.8,168.42,168.39,0.04127248]
[1747782809165,95.8,168.42,168.4,5.9363]
[1747782809566,95.8,168.42,168.41,5.936]
[1747782809760,0.04468336,168.43,168.39,0.04127248]
[1747782810564,0.04468336,168.43,168.42,5.9357]
[1747782812567,0.04468336,168.43,168.42,7.4197295]
[1747782823972,95.78,168.49,168.48,5.9336]
[1747782824175,1.9369,168.51,168.48,5.9336]
[1747782824363,5.9329,168.5,168.42,1.4840295]
[1747782824567,5.9329,168.5,168.47,5.9339]
[1747782824974,5.9332,168.49,168.47,5.97791458]
[1747782825176,0.04101817,168.5,168.47,5.97791458]
[1747782825871,5.97411817,168.5,168.47,5.97791458]
[1747782826075,0.04101817,168.5,168.48,5.9335]
[1747782827280,0.04101817,168.5,168.47,5.97781458]
[1747782828379,5.97401817,168.5,168.47,5.97781458]
[1747782828876,5.97401817,168.5,168.48,5.9336]
[1747782829081,0.04101817,168.5,168.48,5.9336]
[1747782830883,5.97391817,168.5,168.48,5.9336]
[1747782831074,5.97391817,168.5,168.47,5.97771458]
[1747782832674,5.97391817,168.5,168.47,0.04401458]
[1747782832879,5.9336,168.48,168.47,0.04401458]
[1747782833680,5.9346,168.45,168.44,1.4840295]
[1747782833980,93.78,168.48,168.4,1.28571139]
[1747782834187,1.978,168.47,168.4,1.28571139]
[1747782834780,5.9355,168.43,168.42,0.03791408]
[1747782846401,93.78,168.44,168.42,0.03791408]
[1747782846590,0.04506177,168.45,168.42,0.03791408]
[1747782846795,0.04506177,168.45,168.44,5.935]
[1747782849708,0.04506177,168.45,168.44,7.41893071]
[1747782860410,4.0732,168.52,168.49,5.933]
[1747782860798,4.0732,168.52,168.45,92.76]
[1747782861405,0.04455601,168.5,168.47,0.04295098]
[1747782861603,0.04455601,168.5,168.48,5.9332]
[1747782861809,0.04455601,168.5,168.47,0.04295098]
[1747782862712,5.97745601,168.5,168.48,5.9334]
[1747782862902,5.97745601,168.5,168.47,0.04295098]
[1747782863210,5.9332,168.49,168.47,5.97675098]
[1747782863713,0.04455601,168.5,168.47,0.04295098]
[1747782863898,5.9335,168.49,168.47,0.04295098]
[1747782865708,5.97755601,168.5,168.47,5.97675098]
[1747782865908,99.08511276,168.6,168.47,92.78295098]
[1747782866107,5.9319,168.53,168.5,5.9326]
[1747782866316,5.9319,168.53,168.48,1.48343396]
[1747782866914,0.04547557,168.52,168.5,5.9329]
[1747782867414,0.04547557,168.52,168.49,0.04163146]
[1747782867616,0.04547557,168.52,168.5,5.9329]
[1747782868011,0.04547557,168.52,168.49,0.04163146]
[1747782868208,0.04547557,168.52,168.51,5.9325]
[1747782874009,0.04547557,168.52,168.5,5.9327]
[1747782874721,0.04547557,168.52,168.51,5.9325]
[1747782875827,0.04547557,168.52,168.5,5.9327]
[1747782877620,5.97767557,168.52,168.49,5.97473146]
[1747782878323,5.97767557,168.52,168.5,5.9328]
[1747782879009,5.97767557,168.52,168.49,5.97473146]
[1747782880216,0.04547557,168.52,168.5,5.9328]
[1747782880719,0.04547557,168.52,168.49,0.04163146]
[1747782880919,5.9329,168.5,168.49,0.04163146]
[1747782883334,6.0889,168.51,168.45,1.48358802]
[1747782883821,5.9343,168.46,168.45,1.48358802]
[1747782884422,0.03990782,168.47,168.45,94.22358802]
[1747782884629,0.03990782,168.47,168.45,92.74]
[1747782885627,0.03990782,168.47,168.46,5.9343]
[1747782886126,0.03990782,168.47,168.46,7.41788802]
[1747782886723,92.74,168.56,168.46,1.48358802]
[1747782886926,96.9551,168.56,168.46,1.48358802]
[1747782887120,5.9317,168.54,168.46,1.48358802]
[1747782887519,5.9317,168.54,168.47,1.48358802]
[1747782887719,0.0406877,168.52,168.49,0.04182645]
[1747782888131,0.0406877,168.52,168.49,5.97472645]
[1747782888320,0.0406877,168.52,168.49,0.04182645]
[1747782888625,0.0406877,168.52,168.51,5.9325]
[1747782890425,0.0406877,168.52,168.5,7.41638802]
[1747782890727,0.0406877,168.52,168.5,1.48358802]
[1747782890929,0.0406877,168.52,168.5,5.9329]
[1747782891123,0.0406877,168.52,168.49,97.06182645]
[1747782891428,0.0406877,168.52,168.5,5.9326]
[1747782892320,0.0406877,168.52,168.51,5.9325]
[1747782892516,0.0406877,168.52,168.49,0.04182645]
[1747782893625,0.0406877,168.52,168.51,5.9325]
[1747782893820,0.0406877,168.52,168.51,107.0525]
[1747782894119,0.0406877,168.52,168.51,108.53568287]
[1747782894725,0.0406877,168.52,168.51,7.41568287]
[1747782896327,0.0406877,168.52,168.51,1.48318287]
[1747782897631,0.0406877,168.52,168.51,5.9325]
[1747782899931,0.0406877,168.52,168.5,5.9328]
[1747782900432,0.0406877,168.52,168.49,0.04182645]
[1747782900819,5.9730877,168.52,168.5,1.48347026]
[1747782901530,5.9325,168.51,168.5,1.48347026]
[1747782903132,0.0406877,168.52,168.49,0.04182645]
[1747782903727,0.0406877,168.52,168.51,5.9325]
[1747782903931,6.095,168.62,168.5,101.1]
[1747782904128,101.1,168.61,168.5,465.1]
[1747782904326,5.9298,168.59,168.56,5.9305]
[1747782904629,101.1,168.61,168.56,5.9305]
[1747782904832,5.9301,168.58,168.51,6.34511276]
[1747782905033,0.03814084,168.56,168.53,0.04516983]
[1747782905930,5.96894084,168.56,168.53,0.04516983]
[1747782906132,0.03814084,168.56,168.53,0.04516983]
[1747782907938,0.03814084,168.56,168.54,5.9312]
[1747782908437,0.03814084,168.56,168.55,5.9311]
[1747782908835,6.095,168.62,168.54,1.48295481]
[1747782909041,6.095,168.62,168.54,7.82806757]
[1747782909245,6.095,168.62,168.54,1.48295481]
[1747782910238,5.9294,168.6,168.55,1.48295481]
[1747782910439,5.9294,168.6,168.56,0.03977793]
[1747782910643,5.9297,168.59,168.56,0.03977793]
[1747782910839,6.095,168.62,168.56,0.03977793]
[1747782911144,5.9298,168.59,168.56,0.03977793]
[1747782911743,6.095,168.62,168.56,0.03977793]
[1747782912341,6.34511276,168.61,168.56,0.03977793]
[1747782912646,5.9304,168.57,168.56,0.03977793]
[1747782913441,5.9301,168.58,168.56,0.03977793]
[1747782913940,5.9304,168.57,168.56,0.03977793]
[1747782914343,105.88,168.6,168.56,0.03977793]
[1747782914546,5.9302,168.58,168.56,0.03977793]
[1747782914748,105.88,168.6,168.56,0.03977793]
[1747782914950,105.88,168.6,168.57,5.9304]
[1747782915136,5.9291,168.61,168.57,5.9304]
[1747782915342,5.9291,168.61,168.58,5.93]
[1747782915656,6.095,168.62,168.56,0.03977793]
[1747782916242,5.9302,168.58,168.56,0.03977793]
[1747782916448,6.095,168.62,168.56,0.03977793]
[1747782916651,6.095,168.62,168.56,5.97047793]
[1747782916851,5.9297,168.59,168.56,5.97047793]
[1747782917356,5.9297,168.59,168.56,0.03977793]
[1747782918262,5.9302,168.58,168.56,0.03977793]
[1747782918563,6.095,168.62,168.56,5.97047793]
[1747782918766,6.095,168.62,168.56,0.03977793]
[1747782919262,5.9296,168.6,168.56,0.03977793]
[1747782919462,6.095,168.62,168.56,0.03977793]
[1747782919662,12.44011276,168.62,168.56,0.03977793]
[1747782919853,5.9304,168.57,168.56,0.03977793]
[1747782921555,5.931,168.56,168.52,5.932]
[1747782921762,0.04316922,168.58,168.51,5.9324]
[1747782921964,110.62,168.59,168.49,110.62]
[1747782922155,110.62,168.59,168.52,5.9319]
[1747782922462,5.96918828,168.57,168.54,0.04216186]
[1747782922667,0.03848828,168.57,168.54,0.04216186]
[1747782923568,5.9309,168.56,168.54,0.04216186]
[1747782924471,5.9311,168.55,168.54,0.04216186]
[1747782924670,0.03848828,168.57,168.54,0.04216186]
[1747782926677,5.931,168.56,168.54,0.04216186]
[1747782927175,5.9311,168.55,168.54,0.04216186]
[1747782944890,9.9628,168.56,168.54,0.04216186]
[1747782945091,0.03848828,168.57,168.54,0.04216186]
[1747782945482,5.9311,168.56,168.54,0.04216186]
[1747782945682,0.03848828,168.57,168.54,0.04216186]
[1747782946793,5.9311,168.55,168.54,0.04216186]
[1747782947184,0.03848828,168.57,168.54,1.52527677]
[1747782947383,5.9311,168.56,168.54,1.52527677]
[1747782947892,0.03848828,168.57,168.54,1.52527677]
[1747782948092,5.9308,168.56,168.54,1.52527677]
[1747782948690,0.03848828,168.57,168.55,5.9311]
[1747782948892,0.03848828,168.57,168.54,1.52527677]
[1747782949096,0.03848828,168.57,168.54,0.04216186]
[1747782949593,0.03848828,168.57,168.56,5.9308]
[1747782949792,0.03848828,168.57,168.56,7.41362391]
[1747782954206,0.03848828,168.57,168.56,1.48282391]
[1747782954709,0.03848828,168.57,168.56,7.41362391]
[1747782955308,0.03848828,168.57,168.56,1.48282391]
[1747782959210,0.03848828,168.57,168.56,7.41362391]
[1747782961307,5.8862,168.66,168.6,5.9293]
[1747782961607,5.928,168.64,168.57,107.28]
[1747782961907,1.9028,168.66,168.62,5.9286]
[1747782962207,127.42075782,168.7,168.62,0.04189213]
[1747782962411,127.42075782,168.7,168.62,107.32189213]
[1747782962908,127.42075782,168.7,168.67,5.9267]
[1747782963213,11.09122249,168.7,168.67,5.97185727]
[1747782963400,1.9618,168.71,168.67,5.97185727]
[1747782964609,5.9259,168.7,168.67,5.97185727]
[1747782964802,5.9259,168.7,168.67,0.04515727]
[1747782965002,1.9618,168.71,168.67,0.04515727]
[1747782965207,5.9259,168.7,168.67,0.04515727]
[1747782965411,1.9618,168.71,168.67,0.04515727]
[1747782965702,5.9258,168.7,168.67,0.04515727]
[1747782966406,1.9618,168.71,168.67,0.04515727]
[1747782967407,11.09122249,168.8,168.67,107.28515727]
[1747782967607,4.0842,168.78,168.67,107.28515727]
[1747782968406,5.9241,168.75,168.71,5.9253]
[1747782968706,5.9241,168.75,168.71,5.96604003]
[1747782969205,5.9241,168.75,168.71,0.04074003]
[1747782969507,8.99435766,168.76,168.71,0.04074003]
[1747782969711,3.07055766,168.76,168.72,5.9251]
[1747782970007,3.07055766,168.76,168.71,0.04074003]
[1747782971208,5.9249,168.73,168.71,0.04074003]
[1747782971810,5.9251,168.72,168.71,0.04074003]
[1747782972408,3.07055766,168.76,168.71,0.04074003]
[1747782972811,3.07055766,168.76,168.72,5.9251]
[1747782973011,5.9242,168.75,168.72,5.9251]